Workbook

Sheet Unos obračuna plaće
B1: KALKULATOR OBRAČUNA PLAĆA | K1: KRAJ RAZDOBLJA | L1: 41372 | N1: NAZIV TVRTKE | P1: ADVENTURE WORKS
B3: ID | C3: Ime i prezime zaposlenika | D3: Redovni odrađeni sati | E3: Godišnji odmor | F3: Bolovanja | G3: Prekovremeni sati | H3: Stopa za prekovremene sate | I3: Bruto plaća | J3: Porezi i odbici | K3: Drugi odbici | L3: Neto plaća | N3: Satnica | O3: Porezni status | P3: Savezni dodatak | Q3: Županijski porez | R3: Savezni porez na dohodak | S3: Socijalno osiguranje | T3: Zdravstveno osiguranje | U3: Ukupno zadržano poreza | V3: Odbitak za osiguranje | W3: Ostali redovni odbici | X3: Ukupno redovnih odbitaka
B4: 1001 | C4: Tony Smith | D4: 50 | E4: 5 | F4: 1 | I4: =SUM(Zaposlenici[[#This Row],[Redovni odrađeni sati]:[Bolovanja]])*Zaposlenici[[#This Row],[Satnica]]+Zaposlenici[[#This Row],[Prekovremeni sati]]*Zaposlenici[[#This Row],[Stopa za prekovremene sate]] -> 560 | J4: =Zaposlenici[[#This Row],[Bruto plaća]]*Zaposlenici[[#This Row],[Ukupno zadržano poreza]] + Zaposlenici[[#This Row],[Ukupno redovnih odbitaka]] -> 273.08 | K4: 20 | L4: =Zaposlenici[[#This Row],[Bruto plaća]]-Zaposlenici[[#This Row],[Porezi i odbici]]-Zaposlenici[[#This Row],[Drugi odbici]] -> 266.92 | N4: 10 | O4: 1 | P4: 4 | Q4: 0.023 | R4: 0.28 | S4: 0.063 | T4: 0.0145 | U4: =SUM(Zaposlenici[[#This Row],[Županijski porez]:[Zdravstveno osiguranje]]) -> 0.3805 | V4: 20 | W4: 40 | X4: =SUM(Zaposlenici[[#This Row],[Odbitak za osiguranje]:[Ostali redovni odbici]]) -> 60
B5: 1002 | C5: David Jones | D5: 40 | I5: =SUM(Zaposlenici[[#This Row],[Redovni odrađeni sati]:[Bolovanja]])*Zaposlenici[[#This Row],[Satnica]]+Zaposlenici[[#This Row],[Prekovremeni sati]]*Zaposlenici[[#This Row],[Stopa za prekovremene sate]] -> 320 | J5: =Zaposlenici[[#This Row],[Bruto plaća]]*Zaposlenici[[#This Row],[Ukupno zadržano poreza]] + Zaposlenici[[#This Row],[Ukupno redovnih odbitaka]] -> 131.76 | L5: =Zaposlenici[[#This Row],[Bruto plaća]]-Zaposlenici[[#This Row],[Porezi i odbici]]-Zaposlenici[[#This Row],[Drugi odbici]] -> 188.24 | N5: 8 | O5: 1 | P5: 1 | Q5: 0.023 | R5: 0.28 | S5: 0.063 | T5: 0.0145 | U5: =SUM(Zaposlenici[[#This Row],[Županijski porez]:[Zdravstveno osiguranje]]) -> 0.3805 | V5: 0 | W5: 10 | X5: =SUM(Zaposlenici[[#This Row],[Odbitak za osiguranje]:[Ostali redovni odbici]]) -> 10
B6: 1003 | C6: Denise Smith | D6: 35 | E6: 3 | I6: =SUM(Zaposlenici[[#This Row],[Redovni odrađeni sati]:[Bolovanja]])*Zaposlenici[[#This Row],[Satnica]]+Zaposlenici[[#This Row],[Prekovremeni sati]]*Zaposlenici[[#This Row],[Stopa za prekovremene sate]] -> 532 | J6: =Zaposlenici[[#This Row],[Bruto plaća]]*Zaposlenici[[#This Row],[Ukupno zadržano poreza]] + Zaposlenici[[#This Row],[Ukupno redovnih odbitaka]] -> 240.426 | L6: =Zaposlenici[[#This Row],[Bruto plaća]]-Zaposlenici[[#This Row],[Porezi i odbici]]-Zaposlenici[[#This Row],[Drugi odbici]] -> 291.574 | N6: 14 | O6: 1 | P6: 3 | Q6: 0.023 | R6: 0.28 | S6: 0.063 | T6: 0.0145 | U6: =SUM(Zaposlenici[[#This Row],[Županijski porez]:[Zdravstveno osiguranje]]) -> 0.3805 | V6: 18 | W6: 20 | X6: =SUM(Zaposlenici[[#This Row],[Odbitak za osiguranje]:[Ostali redovni odbici]]) -> 38
B7: 1008 | C7: Sebastien Motte | D7: 50 | E7: 5 | F7: 1 | I7: =SUM(Zaposlenici[[#This Row],[Redovni odrađeni sati]:[Bolovanja]])*Zaposlenici[[#This Row],[Satnica]]+Zaposlenici[[#This Row],[Prekovremeni sati]]*Zaposlenici[[#This Row],[Stopa za prekovremene sate]] -> 1120 | J7: =Zaposlenici[[#This Row],[Bruto plaća]]*Zaposlenici[[#This Row],[Ukupno zadržano poreza]] + Zaposlenici[[#This Row],[Ukupno redovnih odbitaka]] -> 441.16 | L7: =Zaposlenici[[#This Row],[Bruto plaća]]-Zaposlenici[[#This Row],[Porezi i odbici]]-Zaposlenici[[#This Row],[Drugi odbici]] -> 678.84 | N7: 20 | O7: 1 | P7: 0 | Q7: 0.023 | R7: 0.28 | S7: 0.063 | T7: 0.0145 | U7: =SUM(Zaposlenici[[#This Row],[Županijski porez]:[Zdravstveno osiguranje]]) -> 0.3805 | V7: 15 | X7: =SUM(Zaposlenici[[#This Row],[Odbitak za osiguranje]:[Ostali redovni odbici]]) -> 15
B8: 1011 | C8: Isabelle Scemla | D8: 40 | G8: 2 | H8: 15 | I8: =SUM(Zaposlenici[[#This Row],[Redovni odrađeni sati]:[Bolovanja]])*Zaposlenici[[#This Row],[Satnica]]+Zaposlenici[[#This Row],[Prekovremeni sati]]*Zaposlenici[[#This Row],[Stopa za prekovremene sate]] -> 430 | J8: =Zaposlenici[[#This Row],[Bruto plaća]]*Zaposlenici[[#This Row],[Ukupno zadržano poreza]] + Zaposlenici[[#This Row],[Ukupno redovnih odbitaka]] -> 223.615 | L8: =Zaposlenici[[#This Row],[Bruto plaća]]-Zaposlenici[[#This Row],[Porezi i odbici]]-Zaposlenici[[#This Row],[Drugi odbici]] -> 206.385 | N8: 10 | O8: 1 | P8: 0 | Q8: 0.023 | R8: 0.28 | S8: 0.063 | T8: 0.0145 | U8: =SUM(Zaposlenici[[#This Row],[Županijski porez]:[Zdravstveno osiguranje]]) -> 0.3805 | V8: 20 | W8: 40 | X8: =SUM(Zaposlenici[[#This Row],[Odbitak za osiguranje]:[Ostali redovni odbici]]) -> 60
B9: 1012 | C9: David Bristol | D9: 40 | E9: 5 | F9: 1 | I9: =SUM(Zaposlenici[[#This Row],[Redovni odrađeni sati]:[Bolovanja]])*Zaposlenici[[#This Row],[Satnica]]+Zaposlenici[[#This Row],[Prekovremeni sati]]*Zaposlenici[[#This Row],[Stopa za prekovremene sate]] -> 552 | J9: =Zaposlenici[[#This Row],[Bruto plaća]]*Zaposlenici[[#This Row],[Ukupno zadržano poreza]] + Zaposlenici[[#This Row],[Ukupno redovnih odbitaka]] -> 270.036 | L9: =Zaposlenici[[#This Row],[Bruto plaća]]-Zaposlenici[[#This Row],[Porezi i odbici]]-Zaposlenici[[#This Row],[Drugi odbici]] -> 281.964 | N9: 12 | O9: 1 | P9: 4 | Q9: 0.023 | R9: 0.28 | S9: 0.063 | T9: 0.0145 | U9: =SUM(Zaposlenici[[#This Row],[Županijski porez]:[Zdravstveno osiguranje]]) -> 0.3805 | V9: 20 | W9: 40 | X9: =SUM(Zaposlenici[[#This Row],[Odbitak za osiguranje]:[Ostali redovni odbici]]) -> 60
B10: 1025 | C10: Anne Weiler | D10: 36 | F10: 2 | G10: 1 | H10: 18 | I10: =SUM(Zaposlenici[[#This Row],[Redovni odrađeni sati]:[Bolovanja]])*Zaposlenici[[#This Row],[Satnica]]+Zaposlenici[[#This Row],[Prekovremeni sati]]*Zaposlenici[[#This Row],[Stopa za prekovremene sate]] -> 474 | J10: =Zaposlenici[[#This Row],[Bruto plaća]]*Zaposlenici[[#This Row],[Ukupno zadržano poreza]] + Zaposlenici[[#This Row],[Ukupno redovnih odbitaka]] -> 225.357 | K10: 25 | L10: =Zaposlenici[[#This Row],[Bruto plaća]]-Zaposlenici[[#This Row],[Porezi i odbici]]-Zaposlenici[[#This Row],[Drugi odbici]] -> 223.643 | N10: 12 | O10: 1 | P10: 2 | Q10: 0.023 | R10: 0.28 | S10: 0.063 | T10: 0.0145 | U10: =SUM(Zaposlenici[[#This Row],[Županijski porez]:[Zdravstveno osiguranje]]) -> 0.3805 | V10: 25 | W10: 20 | X10: =SUM(Zaposlenici[[#This Row],[Odbitak za osiguranje]:[Ostali redovni odbici]]) -> 45
B11: 1032 | C11: Luka Abrus | D11: 40 | E11: 5 | F11: 1 | I11: =SUM(Zaposlenici[[#This Row],[Redovni odrađeni sati]:[Bolovanja]])*Zaposlenici[[#This Row],[Satnica]]+Zaposlenici[[#This Row],[Prekovremeni sati]]*Zaposlenici[[#This Row],[Stopa za prekovremene sate]] -> 460 | J11: =Zaposlenici[[#This Row],[Bruto plaća]]*Zaposlenici[[#This Row],[Ukupno zadržano poreza]] + Zaposlenici[[#This Row],[Ukupno redovnih odbitaka]] -> 175.03 | K11: 50 | L11: =Zaposlenici[[#This Row],[Bruto plaća]]-Zaposlenici[[#This Row],[Porezi i odbici]]-Zaposlenici[[#This Row],[Drugi odbici]] -> 234.97 | N11: 10 | O11: 1 | P11: 3 | Q11: 0.023 | R11: 0.28 | S11: 0.063 | T11: 0.0145 | U11: =SUM(Zaposlenici[[#This Row],[Županijski porez]:[Zdravstveno osiguranje]]) -> 0.3805 | X11: =SUM(Zaposlenici[[#This Row],[Odbitak za osiguranje]:[Ostali redovni odbici]]) -> 0
B12: 1049 | C12: David Ludwig | D12: 40 | E12: 1 | I12: =SUM(Zaposlenici[[#This Row],[Redovni odrađeni sati]:[Bolovanja]])*Zaposlenici[[#This Row],[Satnica]]+Zaposlenici[[#This Row],[Prekovremeni sati]]*Zaposlenici[[#This Row],[Stopa za prekovremene sate]] -> 615 | J12: =Zaposlenici[[#This Row],[Bruto plaća]]*Zaposlenici[[#This Row],[Ukupno zadržano poreza]] + Zaposlenici[[#This Row],[Ukupno redovnih odbitaka]] -> 259.0075 | K12: 23 | L12: =Zaposlenici[[#This Row],[Bruto plaća]]-Zaposlenici[[#This Row],[Porezi i odbici]]-Zaposlenici[[#This Row],[Drugi odbici]] -> 332.9925 | N12: 15 | O12: 1 | P12: 2 | Q12: 0.023 | R12: 0.28 | S12: 0.063 | T12: 0.0145 | U12: =SUM(Zaposlenici[[#This Row],[Županijski porez]:[Zdravstveno osiguranje]]) -> 0.3805 | V12: 25 | X12: =SUM(Zaposlenici[[#This Row],[Odbitak za osiguranje]:[Ostali redovni odbici]]) -> 25
B13: Ukupno | C13: =SUBTOTAL(103,Zaposlenici[Ime i prezime zaposlenika]) -> 9 | D13: =SUBTOTAL(109,Zaposlenici[Redovni odrađeni sati]) -> 371 | E13: =SUBTOTAL(109,Zaposlenici[Godišnji odmor]) -> 24 | F13: =SUBTOTAL(109,Zaposlenici[Bolovanja]) -> 6 | G13: =SUBTOTAL(109,Zaposlenici[Prekovremeni sati]) -> 3 | I13: =SUBTOTAL(109,Zaposlenici[Bruto plaća]) -> 5063 | J13: =SUBTOTAL(109,Zaposlenici[Porezi i odbici]) -> 2239.4715 | K13: =SUBTOTAL(109,Zaposlenici[Drugi odbici]) -> 118 | L13: =SUBTOTAL(109,Zaposlenici[Neto plaća]) -> 2705.5285 | V13: =SUBTOTAL(109,Zaposlenici[Odbitak za osiguranje]) -> 143 | W13: =SUBTOTAL(109,Zaposlenici[Ostali redovni odbici]) -> 170 | X13: =SUBTOTAL(109,Zaposlenici[Ukupno redovnih odbitaka]) -> 313

Sheet predložak_obračuna_plaća (hidden)
C2: =NazivTvrtke -> ADVENTURE WORKS
C3: RAZDOBLJE | D3: =KrajRazdoblja -> 41372 | G3: IME I PREZIME | H3: =IFERROR(INDEX(Zaposlenici[Ime i prezime zaposlenika],Lista),"") -> Tony Smith | K3: ID ZAPOSLENIKA | L3: =IFERROR(INDEX(Zaposlenici[ID],Lista),"") -> 1001
C4: Porezni status | E4: =IFERROR(INDEX(Zaposlenici[Porezni status],Lista),"") -> 1 | G4: Savezni dodatak (iz W-4) | I4: =IFERROR(INDEX(Zaposlenici[Savezni dodatak],Lista),"") -> 4 | K4: Odrađeni sati | M4: =IFERROR(INDEX(Zaposlenici[Redovni odrađeni sati],Lista),"") -> 50
C5: Cijena po satu | E5: =IFERROR(INDEX(Zaposlenici[Satnica],Lista),"") -> 10 | G5: Stopa za prekovremene sate | I5: =IFERROR(INDEX(Zaposlenici[Stopa za prekovremene sate],Lista),"") -> 0 | K5: Bolovanja | M5: =IFERROR(INDEX(Zaposlenici[Bolovanja],Lista),"") -> 1
C6: Socijalno osiguranje | E6: =IFERROR(INDEX(Zaposlenici[Socijalno osiguranje],Lista) * INDEX(Zaposlenici[Bruto plaća],Lista),"") -> 35.28 | G6: Savezni porez na dohodak | I6: =IFERROR(INDEX(Zaposlenici[Savezni porez na dohodak],Lista) * INDEX(Zaposlenici[Bruto plaća],Lista),"") -> 156.8 | K6: Godišnji odmor | M6: =IFERROR(INDEX(Zaposlenici[Godišnji odmor],Lista),"") -> 5
C7: Zdravstveno osiguranje | E7: =IFERROR(INDEX(Zaposlenici[Zdravstveno osiguranje],Lista) * INDEX(Zaposlenici[Bruto plaća],Lista),"") -> 8.12 | G7: Županijski porez | I7: =IFERROR(INDEX(Zaposlenici[Županijski porez],Lista) * INDEX(Zaposlenici[Bruto plaća],Lista),"") -> 12.88 | K7: Prekovremeni sati | M7: =IFERROR(INDEX(Zaposlenici[Prekovremeni sati],Lista),"") -> 0
C8: Odbitak za osiguranje | E8: =IFERROR(INDEX(Zaposlenici[Odbitak za osiguranje],Lista),"") -> 20 | G8: Ostali redovni odbici | I8: =IFERROR(INDEX(Zaposlenici[Ostali redovni odbici],Lista),"") -> 40 | K8: Bruto plaća | M8: =IFERROR(INDEX(Zaposlenici[Bruto plaća],Lista),"") -> 560
C9: Ukupno poreza i | E9: =IFERROR(INDEX(Zaposlenici[Porezi i odbici],Lista),"") -> 273.08 | G9: Ostali odbici | I9: =IFERROR(INDEX(Zaposlenici[Drugi odbici],Lista),"") -> 20 | K9: Ukupno poreza i odbitaka | M9: =IFERROR(INDEX(Zaposlenici[Porezi i odbici],Lista) + INDEX(Zaposlenici[Drugi odbici],Lista),"") -> 293.08
C10: redovitih odbitaka
K11: NETO PLAĆA | M11: =IFERROR(INDEX(Zaposlenici[Neto plaća],Lista),"") -> 266.92
C14: =NazivTvrtke -> ADVENTURE WORKS
C15: RAZDOBLJE | D15: =KrajRazdoblja -> 41372 | G15: IME I PREZIME | H15: =IFERROR(INDEX(Zaposlenici[Ime i prezime zaposlenika],Lista),"") -> David Jones | K15: ID ZAPOSLENIKA | L15: =IFERROR(INDEX(Zaposlenici[ID],Lista),"") -> 1002
C16: Porezni status | E16: =IFERROR(INDEX(Zaposlenici[Porezni status],Lista),"") -> 1 | G16: Savezni dodatak (iz W-4) | I16: =IFERROR(INDEX(Zaposlenici[Savezni dodatak],Lista),"") -> 1 | K16: Odrađeni sati | M16: =IFERROR(INDEX(Zaposlenici[Redovni odrađeni sati],Lista),"") -> 40
C17: Cijena po satu | E17: =IFERROR(INDEX(Zaposlenici[Satnica],Lista),"") -> 8 | G17: Stopa za prekovremene sate | I17: =IFERROR(INDEX(Zaposlenici[Stopa za prekovremene sate],Lista),"") -> 0 | K17: Bolovanja | M17: =IFERROR(INDEX(Zaposlenici[Bolovanja],Lista),"") -> 0
C18: Socijalno osiguranje | E18: =IFERROR(INDEX(Zaposlenici[Socijalno osiguranje],Lista) * INDEX(Zaposlenici[Bruto plaća],Lista),"") -> 20.16 | G18: Savezni porez na dohodak | I18: =IFERROR(INDEX(Zaposlenici[Savezni porez na dohodak],Lista) * INDEX(Zaposlenici[Bruto plaća],Lista),"") -> 89.6 | K18: Godišnji odmor | M18: =IFERROR(INDEX(Zaposlenici[Godišnji odmor],Lista),"") -> 0
C19: Zdravstveno osiguranje | E19: =IFERROR(INDEX(Zaposlenici[Zdravstveno osiguranje],Lista) * INDEX(Zaposlenici[Bruto plaća],Lista),"") -> 4.64 | G19: Županijski porez | I19: =IFERROR(INDEX(Zaposlenici[Županijski porez],Lista) * INDEX(Zaposlenici[Bruto plaća],Lista),"") -> 7.36 | K19: Prekovremeni sati | M19: =IFERROR(INDEX(Zaposlenici[Prekovremeni sati],Lista),"") -> 0
C20: Odbitak za osiguranje | E20: =IFERROR(INDEX(Zaposlenici[Odbitak za osiguranje],Lista),"") -> 0 | G20: Ostali redovni odbici | I20: =IFERROR(INDEX(Zaposlenici[Ostali redovni odbici],Lista),"") -> 10 | K20: Bruto plaća | M20: =IFERROR(INDEX(Zaposlenici[Bruto plaća],Lista),"") -> 320
C21: Ukupno poreza i | E21: =IFERROR(INDEX(Zaposlenici[Porezi i odbici],Lista),"") -> 131.76 | G21: Ostali odbici | I21: =IFERROR(INDEX(Zaposlenici[Drugi odbici],Lista),"") -> 0 | K21: Ukupno poreza i odbitaka | M21: =IFERROR(INDEX(Zaposlenici[Porezi i odbici],Lista) + INDEX(Zaposlenici[Drugi odbici],Lista),"") -> 131.76
C22: redovitih odbitaka
K23: NETO PLAĆA | M23: =IFERROR(INDEX(Zaposlenici[Neto plaća],Lista),"") -> 188.24
C26: =NazivTvrtke -> ADVENTURE WORKS
C27: RAZDOBLJE | D27: =KrajRazdoblja -> 41372 | G27: IME I PREZIME | H27: =IFERROR(INDEX(Zaposlenici[Ime i prezime zaposlenika],Lista),"") -> Denise Smith | K27: ID ZAPOSLENIKA | L27: =IFERROR(INDEX(Zaposlenici[ID],Lista),"") -> 1003
C28: Porezni status | E28: =IFERROR(INDEX(Zaposlenici[Porezni status],Lista),"") -> 1 | G28: Savezni dodatak (iz W-4) | I28: =IFERROR(INDEX(Zaposlenici[Savezni dodatak],Lista),"") -> 3 | K28: Odrađeni sati | M28: =IFERROR(INDEX(Zaposlenici[Redovni odrađeni sati],Lista),"") -> 35
C29: Cijena po satu | E29: =IFERROR(INDEX(Zaposlenici[Satnica],Lista),"") -> 14 | G29: Stopa za prekovremene sate | I29: =IFERROR(INDEX(Zaposlenici[Stopa za prekovremene sate],Lista),"") -> 0 | K29: Bolovanja | M29: =IFERROR(INDEX(Zaposlenici[Bolovanja],Lista),"") -> 0
C30: Socijalno osiguranje | E30: =IFERROR(INDEX(Zaposlenici[Socijalno osiguranje],Lista) * INDEX(Zaposlenici[Bruto plaća],Lista),"") -> 33.516 | G30: Savezni porez na dohodak | I30: =IFERROR(INDEX(Zaposlenici[Savezni porez na dohodak],Lista) * INDEX(Zaposlenici[Bruto plaća],Lista),"") -> 148.96 | K30: Godišnji odmor | M30: =IFERROR(INDEX(Zaposlenici[Godišnji odmor],Lista),"") -> 3
C31: Zdravstveno osiguranje | E31: =IFERROR(INDEX(Zaposlenici[Zdravstveno osiguranje],Lista) * INDEX(Zaposlenici[Bruto plaća],Lista),"") -> 7.714 | G31: Županijski porez | I31: =IFERROR(INDEX(Zaposlenici[Županijski porez],Lista) * INDEX(Zaposlenici[Bruto plaća],Lista),"") -> 12.236 | K31: Prekovremeni sati | M31: =IFERROR(INDEX(Zaposlenici[Prekovremeni sati],Lista),"") -> 0
C32: Odbitak za osiguranje | E32: =IFERROR(INDEX(Zaposlenici[Odbitak za osiguranje],Lista),"") -> 18 | G32: Ostali redovni odbici | I32: =IFERROR(INDEX(Zaposlenici[Ostali redovni odbici],Lista),"") -> 20 | K32: Bruto plaća | M32: =IFERROR(INDEX(Zaposlenici[Bruto plaća],Lista),"") -> 532
C33: Ukupno poreza i | E33: =IFERROR(INDEX(Zaposlenici[Porezi i odbici],Lista),"") -> 240.426 | G33: Ostali odbici | I33: =IFERROR(INDEX(Zaposlenici[Drugi odbici],Lista),"") -> 0 | K33: Ukupno poreza i odbitaka | M33: =IFERROR(INDEX(Zaposlenici[Porezi i odbici],Lista) + INDEX(Zaposlenici[Drugi odbici],Lista),"") -> 240.426
C34: redovitih odbitaka
K35: NETO PLAĆA | M35: =IFERROR(INDEX(Zaposlenici[Neto plaća],Lista),"") -> 291.574
C38: =NazivTvrtke -> ADVENTURE WORKS
C39: RAZDOBLJE | D39: =KrajRazdoblja -> 41372 | G39: IME I PREZIME | H39: =IFERROR(INDEX(Zaposlenici[Ime i prezime zaposlenika],Lista),"") -> Sebastien Motte | K39: ID ZAPOSLENIKA | L39: =IFERROR(INDEX(Zaposlenici[ID],Lista),"") -> 1008
C40: Porezni status | E40: =IFERROR(INDEX(Zaposlenici[Porezni status],Lista),"") -> 1 | G40: Savezni dodatak (iz W-4) | I40: =IFERROR(INDEX(Zaposlenici[Savezni dodatak],Lista),"") -> 0 | K40: Odrađeni sati | M40: =IFERROR(INDEX(Zaposlenici[Redovni odrađeni sati],Lista),"") -> 50
C41: Cijena po satu | E41: =IFERROR(INDEX(Zaposlenici[Satnica],Lista),"") -> 20 | G41: Stopa za prekovremene sate | I41: =IFERROR(INDEX(Zaposlenici[Stopa za prekovremene sate],Lista),"") -> 0 | K41: Bolovanja | M41: =IFERROR(INDEX(Zaposlenici[Bolovanja],Lista),"") -> 1
C42: Socijalno osiguranje | E42: =IFERROR(INDEX(Zaposlenici[Socijalno osiguranje],Lista) * INDEX(Zaposlenici[Bruto plaća],Lista),"") -> 70.56 | G42: Savezni porez na dohodak | I42: =IFERROR(INDEX(Zaposlenici[Savezni porez na dohodak],Lista) * INDEX(Zaposlenici[Bruto plaća],Lista),"") -> 313.6 | K42: Godišnji odmor | M42: =IFERROR(INDEX(Zaposlenici[Godišnji odmor],Lista),"") -> 5
C43: Zdravstveno osiguranje | E43: =IFERROR(INDEX(Zaposlenici[Zdravstveno osiguranje],Lista) * INDEX(Zaposlenici[Bruto plaća],Lista),"") -> 16.24 | G43: Županijski porez | I43: =IFERROR(INDEX(Zaposlenici[Županijski porez],Lista) * INDEX(Zaposlenici[Bruto plaća],Lista),"") -> 25.76 | K43: Prekovremeni sati | M43: =IFERROR(INDEX(Zaposlenici[Prekovremeni sati],Lista),"") -> 0
C44: Odbitak za osiguranje | E44: =IFERROR(INDEX(Zaposlenici[Odbitak za osiguranje],Lista),"") -> 15 | G44: Ostali redovni odbici | I44: =IFERROR(INDEX(Zaposlenici[Ostali redovni odbici],Lista),"") -> 0 | K44: Bruto plaća | M44: =IFERROR(INDEX(Zaposlenici[Bruto plaća],Lista),"") -> 1120
C45: Ukupno poreza i | E45: =IFERROR(INDEX(Zaposlenici[Porezi i odbici],Lista),"") -> 441.16 | G45: Ostali odbici | I45: =IFERROR(INDEX(Zaposlenici[Drugi odbici],Lista),"") -> 0 | K45: Ukupno poreza i odbitaka | M45: =IFERROR(INDEX(Zaposlenici[Porezi i odbici],Lista) + INDEX(Zaposlenici[Drugi odbici],Lista),"") -> 441.16
C46: redovitih odbitaka
K47: NETO PLAĆA | M47: =IFERROR(INDEX(Zaposlenici[Neto plaća],Lista),"") -> 678.84
